Cogmind - Beta 12 @@@ ROGUE MODE // 2023.04.10 @ 20:23:29 Player: Hekatonkheires Result: Destroyed by S-10 Pest with Light Assault Rifle Performance ------------- Evolutions (0) 0 Regions Visited (2) 400 Robots Destroyed (31) 155 Value Destroyed (645) 645 Prototype IDs (0) 0 Alien Tech Used (0) 0 Bonus (0) 0 TOTAL SCORE: 1200 Bonus ------- None Cogmind --------- Core Integrity 0/250 Matter 287/300 Energy 250/250 System Corruption 0% Temperature Cool (0) Movement Rolling (110) Ox2 Location -10/Mines Parts ------- > --- POWER (1) -------- Ion Engine > --- PROPULSION (2) --- Wheel Wheel > --- UTILITY (2) ------ High-capacity Storage Unit > --- WEAPON (2) ------- Light Assault Rifle Hammer > --- INVENTORY (20) --- Ion Engine Ion Engine Ion Engine Light Treads Aluminum Leg Aluminum Leg Wheel Wheel Improved Heat Sink Medium Storage Unit Visual Processing Unit Experimental Sensor Array Signal Interpreter Improved Terrain Scanner Light Armor Plating Small Laser Small Laser Particle Gun Peak State ------------ > --- POWER ------------ Ion Engine > --- PROPULSION ------- Light Treads Light Treads > --- UTILITY ---------- Small Storage Unit Improved Terrain Scanner > --- WEAPON ----------- Assault Rifle Light Assault Rifle > --- INVENTORY -------- Ion Engine Light Treads Aluminum Leg Aluminum Leg Compact Wheel Compact Wheel Improved Heat Sink Medium Laser [Rating: 10] Favorites ----------- Power Ion Engine Engine Ion Engine Propulsion Light Treads Treads Light Treads Leg Aluminum Leg Wheel Wheel Utility Light Armor Plating Device Improved Terrain Scanner Storage Medium Storage Unit Protection Light Armor Plating Weapon Assault Rifle Energy Gun Particle Gun Ballistic Gun Assault Rifle Launcher Grenade Launcher Impact Weapon Hammer Build | -11 -10 -10 ------- Run | Jun Mat Min Slots Evolved . | . . . Power . | . . . Propulsion . | . . . Utility . | . . . Weapon . | . . . Parts Attached 30 | 7 7 16 Power 2 | 1 . 1 Engine 2 | 1 . 1 Core . | . . . Reactor . | . . . Propulsion 8 | 2 1 5 Treads 4 | 2 1 1 Leg 1 | . . 1 Wheel 3 | . . 3 Hover . | . . . Flight . | . . . Utility 10 | 2 5 3 Device 1 | 1 . . Storage 5 | 1 3 1 Processor . | . . . Hackware . | . . . Protection 4 | . 2 2 Artifact . | . . . Weapon 10 | 2 1 7 Energy Gun 1 | . 1 . Energy Cannon . | . . . Ballistic Gun 5 | 2 . 3 Ballistic Cannon . | . . . Launcher 2 | . . 2 Special Weapon . | . . . Impact Weapon 2 | . . 2 Slashing Weapon . | . . . Piercing Weapon . | . . . Special Melee Weapon . | . . . Unidentified Prototypes . | . . . Parts Lost 6 | . . 6 Power . | . . . Propulsion 2 | . . 2 Utility 2 | . . 2 Weapon 2 | . . 2 Highest Loss Streak 2 | . . 2 To Critical Strikes . | . . . Average Slot Usage (%) 97 | . 100 95 Engine 14 | . 14 14 Treads 23 | . 28 17 Wheel 3 | . . 8 Device 2 | . 4 . Storage 14 | . 14 14 Protection 11 | . 9 12 Energy Gun 7 | . 3 11 Ballistic Gun 16 | . 24 6 Impact Weapon 2 | . . 6 Naked Turns . | . . . Heaviest Build 53 | 14 23 53 Greatest Support 40 | 40 40 40 Greatest Overweight (x) 5 | 1 . 5 Average Overweight (x) . | . . . Largest Inventory Capacity 25 | 8 25 20 Average Capacity 10 | 7 9 13 Most Carried 19 | 7 11 19 Average Carried 9 | 4 8 11 Final Capacity 20 | 8 10 20 Final Carried 18 | 6 10 18 Class Distribution -------------------- 100% | Mutant Dominant Class ---------------- Mutant | -10/Materials Mutant | -10/Mines Resources | -11 -10 -10 ----------- Run | Jun Mat Min Matter Collected 873 | 264 176 433 Remotely . | . . . Salvage Created 914 | 28 319 567 Parts 60 | 3 21 36 Haulers Intercepted 2 | . 2 . Recyclers Shooed 1 | . . 1 Parts Field Recycled . | . . . Retrieved Matter . | . . . Parts Self-Destructed . | . . . Prevented . | . . . Kills | -11 -10 -10 ------- Run | Jun Mat Min Combat Hostiles Destroyed 19 | . 3 16 Melee 4 | . . 4 Guns 8 | . 3 5 AOE 4 | . . 4 Classes Destroyed 9 | 1 4 4 Worker 1 | . 1 . Builder 2 | . . 2 Tunneler 7 | 1 . 6 Hauler 2 | . 2 . Recycler 1 | . . 1 Watcher 2 | . 2 . Swarmer 1 | . . 1 Grunt 15 | . 3 12 Assembled 3 | . . 3 Best Kill Streak 8 | 1 2 8 Combat Bots Only 4 | . 2 4 Max Kills in Single Turn 3 | 1 1 3 Gunslinging . | . . . Exploded 1 | . . 1 Melee 1 | . . 1 Uniques/NPCs Destroyed . | . . . Combat | -11 -10 -10 -------- Run | Jun Mat Min Damage Taken 1218 | . 109 1109 Core 251 | . 40 211 Absorbed by Shields . | . . . Core Remaining (%) 100 | 100 . . Volleys Fired 68 | 1 25 42 Largest 2 | 2 2 2 Hottest 85 | 40 40 85 Shots Fired 124 | 2 50 72 Gun 112 | 2 50 60 Cannon . | . . . Launcher 12 | . . 12 Special . | . . . Kinetic 82 | 2 50 30 Thermal 30 | . . 30 Explosive 12 | . . 12 Electromagnetic . | . . . Robot Hit Streak 7 | 1 7 5 Robot Miss Streak 4 | . 4 3 Penetration Max . | . . . Secondary Targets 2 | . . 2 Max Gunslinging Chain 1 | . . 1 Shots Hit Robots 82 | 1 32 49 Core Hits 46 | 1 15 30 Critical Kills . | . . . Critical Parts Destroyed 3 | . . 3 Critical Strikes 5 | . . 5 Burn 2 | . . 2 Smash 3 | . . 3 Melee Attacks 36 | . . 36 Impact 36 | . . 36 Slashing . | . . . Piercing . | . . . Sneak Attacks 2 | . . 2 Combat Hostiles . | . . . Follow-up Attacks . | . . . Damage Inflicted 2138 | 11 357 1770 Guns 817 | 11 350 456 Cannons . | . . . Explosions 939 | . . 939 Melee 375 | . . 375 Ramming 7 | . 7 . Kinetic 549 | 11 350 188 Thermal 268 | . . 268 Explosive 939 | . . 939 Electromagnetic . | . . . Impact 375 | . . 375 Slashing . | . . . Piercing . | . . . Highest Corruption . | . . . Average Corruption . | . . . Corruption Purged . | . . . Corruption Blocked . | . . . Overload Shots . | . . . Overflow Damage 82 | . . 82 Projectiles . | . . . Explosions 27 | . . 27 Melee 55 | . . 55 Knockbacks . | . . . Impact . | . . . Kinetic . | . . . Secondary . | . . . Self-Inflicted Damage 21 | . . 21 Shots 2 | . . 2 Rammed 2 | . 2 . Targets Rammed 2 | . 2 . Kicked . | . . . Crushed . | . . . Highest Temperature 473 | . 15 473 Average Temperature 116 | . 6 147 Received Heat Transfer 411 | . 63 348 Effects 4 | . . 4 Shutdowns 2 | . . 2 Matter Decay 2 | . . 2 Siege Activations . | . . . Robots Corrupted . | . . . Combat Hostiles . | . . . Parts Fried 2 | . . 2 Impact Corruptions 6 | . . 6 Robots Melted . | . . . Combat Hostiles . | . . . Parts Melted 1 | . . 1 Heat Transferred 814 | . . 814 Parts Sabotaged . | . . . Parts Stolen . | . . . Parts Stripped . | . . . Power Chain Reactions . | . . . Missiles Intercepted . | . . . Alert | -11 -10 -10 ------- Run | Jun Mat Min Peak Influence 292 | 5 105 292 Initial 3 | . 3 . Average 54 | 1 26 94 Maximum Alert Level 1 | . . 1 Low Security (%) 93 | 100 100 84 Level 1 6 | . . 15 Level 2 . | . . . Level 3 . | . . . Level 4 . | . . . Level 5 . | . . . High Security . | . . . Max Security . | . . . Squads Dispatched . | . . . Investigation . | . . . Extermination . | . . . Reinforcement . | . . . Assault . | . . . Garrison . | . . . Intercept . | . . . Searches Triggered . | . . . Construction Impeded . | . . . Haulers Reinforced . | . . . Active Scanning Responses . | . . . Cargo Convoy Interrupts . | . . . Stealth | -11 -10 -10 --------- Run | Jun Mat Min Distress Signals 3 | . . 3 Communications Jammed . | . . . Distress Signals . | . . . Times Spotted 29 | . 10 19 Peak Tracking Total 4 | . 2 4 Tactical Retreats 4 | . 1 3 Traps | -11 -10 -10 ------- Run | Jun Mat Min Traps Triggered 1 | . 1 . Indirectly . | . . . Trap Hack Attempts . | . . . Triggered . | . . . Disarmed . | . . . Reprogrammed . | . . . Reused . | . . . Traps Extracted . | . . . Installed . | . . . Triggered . | . . . Machines | -11 -10 -10 ---------- Run | Jun Mat Min Machines Disabled 1 | . . 1 Max in Single Turn 1 | . . 1 Machines Repaired . | . . . Machines Sabotaged . | . . . Overloaded Fab Kills . | . . . Hacking | -11 -10 -10 --------- Run | Jun Mat Min Machines Accessed 5 | . 5 . Terminals 5 | . 5 . Fabricators . | . . . Repair Stations . | . . . Recycling Units . | . . . Scanalyzers . | . . . Garrison Access . | . . . Total Hacks 16 | . 16 . Successful 9 | . 9 . Failed 7 | . 7 . Catastrophic 1 | . 1 . Database Lockouts . | . . . Manual 7 | . 7 . Terminals 16 | . 16 . Fabricators . | . . . Repair Stations . | . . . Recycling Units . | . . . Scanalyzers . | . . . Garrison Access . | . . . Terminal Hacks 4 | . 4 . Alert Level 1 | . 1 . Locate Traps 1 | . 1 . Zone Layout 2 | . 2 . Fabricator Hacks . | . . . Repair Station Hacks . | . . . Recycling Unit Hacks . | . . . Scanalyzer . | . . . Garrison Access Hacks . | . . . Unauthorized Hacks 5 | . 5 . Terminals 5 | . 5 . Botnet 5 | . 5 . Fabricators . | . . . Repair Stations . | . . . Recycling Units . | . . . Scanalyzers . | . . . Garrison Access . | . . . Data Cores Recovered . | . . . Used . | . . . Hacking Detections 5 | . 5 . Full Trace Events . | . . . Feedback Events . | . . . Feedback Blocked . | . . . Robot Schematics Acquired . | . . . Robots Built . | . . . Authchips . | . . . Time . | . . . Total Robot Build Rating . | . . . Part Schematics Acquired . | . . . Parts Built . | . . . Authchips . | . . . Time . | . . . Total Part Build Rating . | . . . Parts Repaired . | . . . Time . | . . . Parts Recycled . | . . . Recycled Matter . | . . . Retrieved Matter . | . . . Retrieved Components . | . . . Parts Scanalyzed . | . . . Part Schematics Acquired . | . . . Parts Damaged . | . . . Bothacking | -11 -10 -10 ------------ Run | Jun Mat Min Used RIF Installer . | . . . Robots Hacked . | . . . Non-combat . | . . . Combat . | . . . Robot Hacks Applied . | . . . Relay Couplers Released . | . . . Fabnet Peak Effective % . | . . . Robots Rewired . | . . . Allies Hacked . | . . . Hacks Repelled . | . . . Allies | -11 -10 -10 -------- Run | Jun Mat Min Total Allies 3 | . . 3 Largest Group 3 | . . 3 Highest-Rated Group 40 | . . 40 Highest-Rated Ally 16 | . . 16 Total Orders . | . . . Ally Attacks 9 | . . 9 Total Damage 45 | . . 45 Kills . | . . . Allies Corrupted . | . . . Allies Melted . | . . . Intel | -11 -10 -10 ------- Run | Jun Mat Min Robot Analysis Total . | . . . Derelict Logs Recovered 3 | . . 3 Drone Launches . | . . . Drone Recoveries . | . . . Exploration | -11 -10 -10 ------------- Run | Jun Mat Min Turns Passed 2053 | 97 1089 867 Spaces Moved 1026 | 51 585 390 Core 5 | 5 . . Treads 887 | 46 585 256 Legs . | . . . Wheels 134 | . . 134 Hover . | . . . Flight . | . . . Fastest Speed 50 | 50 160 110 Average Speed 157 | 153 160 155 Slowest Speed 320 | 160 160 320 Overloaded Moves . | . . . Propulsion Burnouts . | . . . Robots Hopped . | . . . Cave-ins Triggered . | . . . Exploration Rate (%) 51 | 4 82 69 Regions Visited 2 Branch Regions 1 Pre-discovered Areas 1 | . . 1 Known Exits Taken . | . . . Unknown Exits Taken 2 | 1 1 . Scrap Searched 1 | . . 1 Spaces Dug . | . . . Terrain Destroyed 59 | . . 59 Melee . | . . . Projectile . | . . . AOE 59 | . . 59 Terrain Rammed . | . . . Walls Destroyed . | . . . Machines Disabled . | . . . Actions | -11 -10 -10 --------- Run | Jun Mat Min Total 1271 | 66 696 509 Wait 67 | . 53 14 Move 1024 | 50 584 390 Hop . | . . . Pick Up 31 | 8 13 10 Fast Attach 10 | 5 4 1 Attach 6 | 2 . 4 Detach . | . . . Swap 14 | . 3 11 Drop 13 | . 12 1 Fire 68 | 1 25 42 Melee 36 | . . 36 Ram . | . . . Kick . | . . . Crush 2 | . 2 . Escape Stasis . | . . . Rewire . | . . . Trap . | . . . Miscellaneous . | . . . Route ------- -11/Junkyard -10/Materials (discovered 4 exits: [*Mat x3] / [*Min]) -10/Mines History --------- Turn | Location | Event 53 | -11/Junkyard | Discovered new exit (range 12) 98 | -11/Junkyard | Entered Materials 241 | -10/Materials | Discovered new exit (range 6) 268 | -10/Materials | Discovered new exit (range 16) 317 | -10/Materials | Build established: Mutant 451 | -10/Materials | Discovered new exit (range 5) 958 | -10/Materials | Discovered new exit (range 10) 1187 | -10/Materials | Entered Mines 1189 | -10/Mines | Assisted by bots powering up and referring to "LRC-V3" 1243 | -10/Mines | Found a damaged Exp. Sensor Array with a note attached 1247 | -10/Mines | Found Prototype Device 1346 | -10/Mines | Excavation squad dispatched 1346 | -10/Mines | A large section of the Mines collapsed 1596 | -10/Mines | Excavation squad dispatched 1846 | -10/Mines | Excavation squad dispatched 1918 | -10/Mines | Core integrity fell below 50% 1952 | -10/Mines | Learned Materials terminal intel 2014 | -10/Mines | Core integrity fell below 20% 2054 | -10/Mines | Destroyed by S-10 Pest with Light Assault Rifle Last Messages --------------- 01926_ G-34 Mercenary system corrupted by crushing effect. 01927_ G-34 Mercenary system terminally corrupted. 01927_ Sml. Laser fried. 01931_ Acquired Imp. Terrain Scanner. 01941_ Acquired 20 matter. 01952_ Acquired derelict log, extracted data. Data stored: Materials terminal intel. 01966_ T-07 Excavator is excavating. 01993_ Destroyed Flight Unit. 01993_ Laser Drill disabled. 01993_ Destroyed Lgt. Ion Engine. 01993_ Destroyed Flight Unit. 01995_ Grenade Launcher destroyed. 01996_ Lgt. Armor Plating destroyed. 02009_ S-10 Pest destroyed. 02032_ S-10 Pest suffers critical hit (Smash). 02032_ Destroyed Lgt. Assault Rifle. 02032_ S-10 Pest system corrupted by crushing effect. 02051_ Acquired Lgt. Assault Rifle. 02053_ Acquired 7 matter. Map ----- +----------------------------------------------------+ | ???????????????????????????????? | | ???????????????????????????????? | | ###????????????????????????????? | | # ????????????????????????????? | | # #????????????????????????????? | | # #????????????????????????????? | | # #????????????????????????????? | | # #????????????????????????????? | | # #????????????????????????????? | | # #????????????????????????????? | | # #????????????????????????????? | | # #????????????????????????????? | | # #????????????????????????????? | | # #????????????????????????????? | | # ########?????????????????????? | | # #????????##########?#?? | | #=###### #????????# #?? | | %!#????# #????????# #?? | | ###????# ###??????# "" """ #?? | | ??????## ##?????# " """ #?? | | ??????# #?????# """ #?? | | ??????# ##????# #?? | | ??????## ##???# s #?? | | ???????## ##### ???? | | ????????# # # ??# =#????? | | ????????# ## ######@#????? | | ##??????# ## #????? | | ##?????###### #????? | | #??????????### ######????? | | #????????????## ##????????? | | ##?????????????# #????????? | | ##??????????????# #??????? | | #???????????????## #?????? | | ?????????????????## #????? | | ??????????????????## #???? | | ????????????????????## #???? | | ??????????????????????# ##???? | | ???????????????????????####????? | | ???????????????????????????????? | | ???????????????????????????????? | | | | | | | | | | | | | | | | | | | | | +----------------------------------------------------+ Best States ------------- Heat Dissipation 25 Energy Generation 10 Energy Capacity 250 Matter Stores 300 Matter Capacity 300 Sight Range 16 Terrain Scan Range 16 Terrain Scan Density 10 Armor Coverage 150 Evasion (%) 40 Recoil Reduction 2 Item Schematics ----------------- None Robot Schematics ------------------ None Fabricated ------------ Nothing Alien Tech Used ----------------- None Achievements -------------- None Challenges ------------ None Game ------ Seed CloakingNeutronRipper Manual? 0 Play Time 00:22:58 Cumulative 26.7 hours Start 2023.04.10 @ 20:00:35 End 2023.04.10 @ 20:23:29 Sessions 1 Manual Loads 0 Difficulty Rogue Special Mode None Game No. 22 Rogue 22 Adventurer 0 Explorer 0 Win Type - Total 0 Types 0/0/0/0/0/0/0/0/0 Lore% 33 Gallery% 33 Achievement% 28 Wizard Run 0 Options --------- ASCII 0 Keyboard 0 Movement Numpad Keybinds 0 Fullscreen 1 Font 14/SmallcapsGlow Map View 84x54 Tactical HUD 1 Map Filters NONE Filters NONE Steam 1 RUN: 4346df2e-0170-4eeb-81bd-061a87a2d44c